fUST/lending_fUST_20240630
["ID","MTS","AMOUNT","RATE_DAILY","PERIOD"]
[330662114,1719697852458,-2136.16,0.00016815,2]
[330662115,1719697852472,-531.8812469,0.00016815,2]
[330662116,1719697852488,-25835.35,0.00016815,2]
[330662117,1719697852503,-2798.96,0.00016815,2]
[330662118,1719697852517,-221.804189,0.00016816,2]
[330662119,1719697852532,-221.804189,0.00016816,2]
[330662120,1719697852548,-2798.96,0.00016892,2]
[330662121,1719697852563,-2798.96,0.00016893,2]
[330662122,1719697852579,-153.0,0.000169,2]
[330662123,1719697852594,-153.0,0.000169,2]
[330662124,1719697852608,-153.0,0.000169,2]
[330662125,1719697852623,-153.0,0.000169,2]
[330662126,1719697852637,-153.0,0.000169,2]
[330662127,1719697852652,-153.0,0.000169,2]
[330662128,1719697852666,-153.0,0.000169,2]
[330662129,1719697852681,-416.1318773,0.000169,2]
[330662130,1719697852696,-153.0,0.000169,2]
[330662131,1719697852711,-221.804189,0.000169,2]
[330662132,1719697852726,-221.804189,0.000169,2]
[330662133,1719697852741,-600.0,0.00016938,2]
[330662134,1719697852756,-808.596,0.00016976,2]
[330662135,1719697852771,-245.192,0.00016976,2]
[330662136,1719697852786,-610.0,0.00016978,2]
[330662137,1719697852802,-500.0,0.00017,2]
[330662138,1719697852818,-153.0,0.00017,2]
[330662139,1719697852832,-153.0,0.00017,2]
[330662140,1719697852847,-153.0,0.00017,2]
[330662141,1719697852862,-153.0,0.00017,2]
[330662142,1719697852876,-153.0,0.00017,2]
[330662143,1719697852890,-306.530617,0.00017,2]
[330662144,1719697852906,-312.1291059,0.00017,2]
[330662145,1719697852921,-600.0,0.00017115,2]
[330662146,1719697852935,-2798.96,0.00017157,2]
[330662147,1719697852950,-30000.0,0.00017159,2]
[330662148,1719697852965,-153.0,0.000172,2]
[330662149,1719697852980,-153.0,0.000172,2]
[330662150,1719697852995,-153.0,0.000172,2]
[330662151,1719697853010,-153.0,0.000172,2]
[330662152,1719697853020,-153.0,0.000172,2]
[330662153,1719697853029,-153.0,0.000172,2]
[330662154,1719697853156,-153.0,0.000172,2]
[330662155,1719697853177,-153.0,0.000172,2]
[330662156,1719697853188,-153.0,0.000172,2]
[330662157,1719697853197,-153.0,0.000172,2]
[330662158,1719697853207,-153.0,0.000172,2]
[330662159,1719697853216,-153.0,0.000172,2]
[330662160,1719697853225,-8832.58,0.00017255,2]
[330662161,1719697853234,-530.62,0.00017255,2]
[330662162,1719697853243,-2588.58,0.00017255,2]
[330662163,1719697853253,-5876.12334675,0.00017255,2]
[330662164,1719697853551,-1009.26665325,0.00017255,2]
[330662165,1719697853561,-500.0,0.00017255,2]
[330662166,1719697853570,-701.21047804,0.00017255,2]
[330662167,1719697853582,-21.88952196,0.00017255,2]
[330662168,1719697853591,-746.42,0.00017255,2]
[330662169,1719697853601,-500.0,0.00017256,2]
[330662170,1719697853610,-560.75,0.00017256,2]
[330662171,1719697853619,-500.0,0.00017256,2]
[330662172,1719697853629,-500.0,0.00017256,2]
[330662173,1719697853638,-803.16,0.00017256,2]
[330662174,1719697853647,-500.0,0.00017256,2]
[330662175,1719697853656,-500.0,0.00017256,2]
[330662176,1719697853666,-500.0,0.00017256,2]
[330662177,1719697853675,-572.16,0.00017256,2]
[330662178,1719697853684,-1095.56,0.00017256,2]
[330662179,1719697853694,-500.0,0.00017256,2]
[330662180,1719697853703,-500.0,0.00017256,2]
[330662181,1719697853713,-500.0,0.00017256,2]
[330662182,1719697853722,-500.0,0.00017256,2]
[330662183,1719697853731,-489.19997459,0.00017256,2]
[330662184,1719697853740,-500.0,0.00017256,2]
[330662185,1719697853750,-966.25,0.00017256,2]
[330662186,1719697853759,-500.0,0.00017256,2]
[330662187,1719697853769,-695.74,0.00017256,2]
[330662188,1719697853778,-500.0,0.00017256,2]
[330662189,1719697853787,-832.47,0.00017256,2]
[330662190,1719697853796,-500.0,0.00017256,2]
[330662191,1719697853806,-500.0,0.00017256,2]
[330662192,1719697853815,-563.88501302,0.00017256,2]
[330662193,1719697853824,-500.0,0.00017256,2]
[330662194,1719697853833,-500.0,0.00017256,2]
[330662195,1719697853842,-1526.54,0.00017256,2]
[330662196,1719697853852,-500.0,0.00017256,2]
[330662197,1719697853862,-517.21,0.00017256,2]
[330662198,1719697853871,-500.0,0.00017256,2]
[330662199,1719697853880,-500.0,0.00017256,2]
[330662200,1719697853889,-2249.42,0.00017256,2]
[330662201,1719697853899,-500.0,0.00017256,2]
[330662202,1719697853908,-500.0,0.00017256,2]
[330662203,1719697853918,-500.0,0.00017256,2]
[330662204,1719697853927,-151.0,0.00017257,2]
[330662205,1719697853936,-12495.90799038,0.00017257,2]
[330670544,1719697953648,1083.66412041,0.00014999,2]
[330670546,1719697978664,1117.87472833,0.00014999,2]
[330670547,1719697979613,309.67484142,0.00014999,2]
[330670548,1719697984098,359.7349756,0.00014999,2]
[330670549,1719697990276,518.85515067,0.00014999,2]
[330670550,1719698118487,174.58592822,0.00014999,2]
[330670551,1719698121013,933.08575257,0.00014999,2]
[330670552,1719698184118,500.0,0.00014999,2]
[330670554,1719698284084,386.25904064,0.00014999,7]
[330670555,1719698355971,5572.34984345,0.00014998,2]
[330670557,1719698364034,10915.07478394,0.00014999,2]
[330670558,1719698370253,181.6707771,0.00014999,2]
[330670567,1719698961543,-304.970342,0.00015407,2]
[330670568,1719698961576,-378.64357727,0.00015421,2]
[330670569,1719698961692,-215.50606003,0.00015421,2]
[330670636,1719699038996,-490.10020905,0.00015995,2]
[330670638,1719699039006,-18716.65868595,0.00016255,2]
[330670640,1719699039017,-1273.58288951,0.00016508,2]
[330670642,1719699039030,-2000.0,0.00016607,2]
[330670644,1719699039045,-1068.71602134,0.00016608,2]
[330670647,1719699039059,-9064.15,0.00016609,2]
[330670648,1719699039069,-555.69,0.00016609,2]
[330670651,1719699039080,-2662.87,0.00016609,2]
[330670652,1719699039090,-7045.34,0.00016609,2]
[330670654,1719699039101,-500.0,0.00016609,2]
[330670656,1719699039111,-176.71263072,0.00016609,2]
[330670659,1719699039122,-754.08,0.00016609,2]
[330670660,1719699039132,-486.19324516,0.0001661,2]
[330670662,1719699039142,-54946.77,0.0001661,2]
[330670665,1719699039152,-6434.38,0.0001661,2]
[330670666,1719699039163,-10762.13,0.0001661,2]
[330670669,1719699039173,-4105.13,0.0001661,2]
[330670671,1719699039183,-500.0,0.0001661,2]
[330670672,1719699039194,-500.0,0.0001661,2]
[330670675,1719699039204,-500.0,0.0001661,2]
[330670676,1719699039214,-360.58,0.0001661,2]
[330670678,1719699039224,-1698.38,0.0001661,2]
[330670680,1719699039234,-647.71,0.0001661,2]
[330670682,1719699039244,-63963.73019149,0.00016611,7]
[330670684,1719699039254,-500.0,0.00016611,2]
[330670687,1719699039264,-543.66975848,0.00016611,2]
[330670688,1719699039274,-500.0,0.00016611,2]
[330670691,1719699039285,-566.15,0.00016611,2]
[330670693,1719699039295,-500.0,0.00016611,2]
[330670695,1719699039306,-777.64,0.00016611,2]
[330670697,1719699039316,-817.75,0.00016611,2]
[330670699,1719699039326,-502.6265869,0.00016611,2]
[330670701,1719699039336,-500.0,0.00016611,2]
[330670702,1719699039346,-503.10576083,0.00016611,2]
[330670704,1719699039356,-500.0,0.00016611,2]
[330670707,1719699039366,-500.0,0.00016611,2]
[330670709,1719699039376,-501.3110064,0.00016611,2]
[330670711,1719699039386,-500.0,0.00016611,2]
[330670713,1719699039397,-500.0,0.00016611,2]
[330670715,1719699039407,-506.39514597,0.00016611,2]
[330670717,1719699039417,-576.55,0.00016611,2]
[330670719,1719699039427,-500.0,0.00016611,2]
[330670721,1719699039436,-500.0,0.00016611,2]
[330670723,1719699039447,-500.0,0.00016611,2]
[330670725,1719699039457,-501.08864485,0.00016611,2]
[330670727,1719699039467,-500.0,0.00016611,2]
[330670729,1719699039477,-500.0,0.00016611,2]
[330670731,1719699039487,-500.0,0.00016611,2]
[330670733,1719699039497,-500.0,0.00016611,2]
[330670735,1719699039507,-3595.71,0.00016611,2]
[330670737,1719699039516,-500.0,0.00016611,2]
[330670739,1719699039526,-500.0,0.00016611,2]
[330670741,1719699039536,-514.259048,0.00016611,2]
[330670743,1719699039546,-500.0,0.00016611,2]
[330670745,1719699039556,-500.0,0.00016611,2]
[330670758,1719699039683,-500.0,0.00016611,2]
[330670760,1719699039693,-500.0,0.00016611,2]
[330670762,1719699039703,-1082.26,0.00016611,2]
[330670764,1719699039713,-500.0,0.00016611,2]
[330670766,1719699039723,-500.0,0.00016611,2]
[330670768,1719699039733,-402.31588814,0.00016611,2]
[330670770,1719699039743,-241.66002904,0.00016611,2]
[330670771,1719699039752,-1126.07,0.00016611,2]
[330670773,1719699039762,-500.0,0.00016611,2]
[330670776,1719699039772,-503.93431625,0.00016611,2]
[330670778,1719699039782,-875.47,0.00016611,2]
[330670779,1719699039792,-500.0,0.00016611,2]
[330670781,1719699039801,-502.47140459,0.00016611,2]
[330670783,1719699039811,-528.6361372,0.00016611,2]
[330670785,1719699039822,-500.0,0.00016611,2]
[330670787,1719699039832,-701.05,0.00016611,2]
[330670789,1719699039841,-500.0,0.00016611,2]
[330670791,1719699039852,-500.0,0.00016611,2]
[330670793,1719699039861,-500.0,0.00016611,2]
[330670795,1719699039871,-591.6073151,0.00016611,2]
[330670797,1719699039881,-500.0,0.00016611,2]
[330670799,1719699039891,-504.92118705,0.00016611,2]
[330670801,1719699039900,-1000.0,0.00016611,2]
[330670803,1719699039910,-500.0,0.00016611,2]
[330670805,1719699039919,-538.93,0.00016611,2]
[330670807,1719699039929,-500.0,0.00016611,2]
[330670809,1719699039939,-542.28,0.00016611,2]
[330670811,1719699039949,-855.34,0.00016611,2]
[330670813,1719699039959,-500.0,0.00016611,2]
[330670815,1719699039969,-500.0,0.00016611,2]
[330670817,1719699039979,-500.0,0.00016611,2]
[330670819,1719699039990,-4206.74,0.00016611,2]
[330670821,1719699040000,-999.62,0.00016611,2]
[330670823,1719699040010,-500.0,0.00016611,2]
[330670825,1719699040019,-500.0,0.00016611,2]
[330670827,1719699040032,-500.0,0.00016611,2]
[330670829,1719699040042,-500.0,0.00016611,2]
[330670831,1719699040052,-500.0,0.00016611,2]
[330670832,1719699040062,-500.0,0.00016611,2]
[330670834,1719699040075,-718.19,0.00016611,2]
[330670836,1719699040088,-500.0,0.00016611,2]
[330670838,1719699040098,-528.07,0.00016611,2]
[330670840,1719699040111,-281.12208792,0.00016611,2]
[330670842,1719699040121,-500.0,0.00016611,2]
[330670844,1719699040130,-1086.95,0.00016611,2]
[330670846,1719699040139,-500.0,0.00016611,2]
[330670848,1719699040149,-500.0,0.00016611,2]
[330670850,1719699040158,-500.0,0.00016611,2]
[330670852,1719699040168,-500.0,0.00016611,2]
[330670854,1719699040178,-500.0,0.00016611,2]
[330670856,1719699040191,-500.0,0.00016611,2]
[330670858,1719699040201,-500.0,0.00016611,2]
[330670860,1719699040211,-500.0,0.00016611,2]
[330670862,1719699040222,-500.0,0.00016611,2]
[330670864,1719699040231,-500.0,0.00016611,2]
[330670866,1719699040241,-500.0,0.00016611,2]
[330670868,1719699040250,-500.0,0.00016611,2]
[330670870,1719699040260,-500.0,0.00016611,2]
[330670872,1719699040270,-500.0,0.00016611,2]
[330670874,1719699040280,-500.0,0.00016611,2]
[330670876,1719699040290,-703.37,0.00016611,2]
[330670878,1719699040300,-500.0,0.00016611,2]
[330670880,1719699040310,-500.0,0.00016611,2]
[330670882,1719699040320,-500.0,0.00016611,2]
[330670884,1719699040330,-515.53224523,0.00016611,2]
[330670886,1719699040340,-500.0,0.00016611,2]
[330670888,1719699040350,-500.0,0.00016611,2]
[330670890,1719699040360,-785.58,0.00016611,2]
[330670892,1719699040370,-503.84569729,0.00016611,2]
[330670894,1719699040380,-182.78609145,0.00016611,2]
[330670896,1719699040391,-500.0,0.00016611,2]
[330670898,1719699040401,-500.0,0.00016611,2]
[330670900,1719699040412,-500.0,0.00016611,2]
[330670902,1719699040422,-500.0,0.00016611,2]
[330670904,1719699040432,-10376.66,0.00016611,2]
[330670906,1719699040443,-3646.64,0.00016611,2]
[330670908,1719699040453,-500.0,0.00016611,2]
[330670910,1719699040462,-500.0,0.00016611,2]
[330670912,1719699040472,-4424.87,0.00016611,2]
[330670914,1719699040482,-503.57998633,0.00016611,2]
[330670916,1719699040492,-500.0,0.00016611,2]
[330670918,1719699040502,-327.89054527,0.00016611,2]
[330670920,1719699040512,-500.0,0.00016611,2]
[330670922,1719699040522,-500.0,0.00016611,2]
[330670924,1719699040531,-9547.57,0.00016611,2]
[330670926,1719699040541,-504.13476022,0.00016611,2]
[330670928,1719699040551,-500.0,0.00016611,2]
[330670930,1719699040561,-5081.32,0.00016611,2]
[330670932,1719699040572,-500.0,0.00016611,2]
[330670934,1719699040581,-470.85616767,0.00016611,2]
[330670936,1719699040591,-500.0,0.00016611,2]
[330670937,1719699040600,-1643.06,0.00016611,2]
[330670938,1719699040610,-500.0,0.00016611,2]
[330670939,1719699040619,-988.25,0.00016611,2]
[330670940,1719699040628,-501.57102348,0.00016611,2]
[330670941,1719699040638,-500.0,0.00016611,2]
[330670942,1719699040647,-500.0,0.00016611,2]
[330670943,1719699040657,-500.0,0.00016611,2]
[330670944,1719699040666,-500.0,0.00016611,2]
[330670945,1719699040676,-670.26,0.00016611,2]
[330670946,1719699040686,-869.01,0.00016611,2]
[330670947,1719699040696,-500.0,0.00016611,2]
[330670948,1719699040705,-500.0,0.00016611,2]
[330670949,1719699040714,-500.0,0.00016611,2]
[330670950,1719699040723,-500.0,0.00016611,2]
[330670951,1719699040733,-3939.06,0.00016611,2]
[330670952,1719699040742,-893.45,0.00016611,2]
[330670953,1719699040751,-1134.74,0.00016611,2]
[330670954,1719699040760,-506.53725978,0.00016611,2]
[330670955,1719699040770,-500.0,0.00016611,2]
[330670956,1719699040779,-993.12,0.00016611,2]
[330670957,1719699040788,-14378.79,0.00016611,2]
[330670958,1719699040797,-500.0,0.00016611,2]
[330670959,1719699040806,-506.2557711,0.00016611,2]
[330670960,1719699040816,-522.84123545,0.00016611,2]
[330670961,1719699040826,-500.0,0.00016611,2]
[330670962,1719699040835,-500.0,0.00016611,2]
[330670963,1719699040844,-503.66701846,0.00016611,2]
[330670964,1719699040853,-291.16888287,0.00016611,2]
[330670965,1719699040862,-431.92768758,0.00016611,2]
[330670966,1719699040872,-500.0,0.00016611,2]
[330670967,1719699040881,-500.0,0.00016611,2]
[330670968,1719699040890,-504.21809198,0.00016611,2]
[330670969,1719699040900,-834.89,0.00016611,2]
[330670970,1719699040909,-500.0,0.00016611,2]
[330670971,1719699040918,-1210.26,0.00016611,2]
[330670972,1719699040927,-500.0,0.00016611,2]
[330670973,1719699040936,-500.0,0.00016611,2]
[330670974,1719699040945,-1247.27,0.00016611,2]
[330670975,1719699040955,-338.98286592,0.00016611,2]
[330670976,1719699040964,-500.0,0.00016611,2]
[330670977,1719699040973,-927.17,0.00016611,2]
[330670978,1719699040983,-500.0,0.00016611,2]
[330670979,1719699040992,-500.0,0.00016611,2]
[330670980,1719699041002,-556.38,0.00016611,2]
[330670981,1719699041012,-1662.69,0.00016611,2]
[330670982,1719699041021,-500.0,0.00016611,2]
[330670984,1719699041034,-500.0,0.00016611,2]
[330670986,1719699041043,-500.0,0.00016611,2]
[330670988,1719699041053,-500.0,0.00016611,2]
[330670990,1719699041063,-500.0,0.00016611,2]
[330670992,1719699041072,-500.0,0.00016611,2]
[330670993,1719699041082,-500.0,0.00016611,2]
[330670996,1719699041091,-1505.92,0.00016611,2]
[330670997,1719699041101,-742.02,0.00016611,2]
[330670999,1719699041110,-500.0,0.00016611,2]
[330671001,1719699041120,-500.0,0.00016611,2]
[330671003,1719699041129,-500.0,0.00016611,2]
[330671005,1719699041139,-2395.86,0.00016611,2]
[330671008,1719699041148,-500.0,0.00016611,2]
[330671009,1719699041158,-500.0,0.00016611,2]
[330671011,1719699041167,-761.39,0.00016611,2]
[330671013,1719699041176,-500.0,0.00016611,2]
[330671025,1719699041265,-500.0,0.00016611,2]
[330671027,1719699041285,-1206.13,0.00016611,2]
[330671029,1719699041295,-500.0,0.00016611,2]
[330671031,1719699041304,-1087.25,0.00016611,2]
[330671033,1719699041313,-1091.29,0.00016611,2]
[330671035,1719699041323,-501.605014,0.00016611,2]
[330671037,1719699041332,-2047.63,0.00016611,2]
[330671038,1719699041342,-736.74,0.00016611,2]
[330671039,1719699041351,-523.53,0.00016611,2]
[330671040,1719699041361,-544.93210748,0.00016611,2]
[330671041,1719699041370,-500.0,0.00016611,2]
[330671043,1719699041380,-500.0,0.00016611,2]
[330671045,1719699041389,-1481.38,0.00016611,2]
[330671047,1719699041399,-2210.02,0.00016611,2]
[330671050,1719699041409,-500.0,0.00016611,2]
[330671052,1719699041419,-536.96716511,0.00016611,2]
[330671054,1719699041428,-600.29035964,0.00016611,2]
[330671056,1719699041437,-582.67,0.00016611,2]
[330671057,1719699041446,-500.0,0.00016611,2]
[330671059,1719699041455,-511.17262431,0.00016611,2]
[330671061,1719699041465,-967.57,0.00016611,2]
[330671064,1719699041475,-4406.31,0.00016611,2]
[330671065,1719699041485,-1028.1,0.00016611,2]
[330671068,1719699041494,-2245.36,0.00016611,2]
[330671070,1719699041503,-500.0,0.00016705,2]
[330671071,1719699041513,-500.0,0.00016705,2]
[330671073,1719699041522,-168.30792774,0.00016705,2]
[330671075,1719699041531,-500.0,0.00016705,2]
[330671077,1719699041541,-500.0,0.00016705,2]
[330671079,1719699041551,-500.0,0.00016706,2]
[330671081,1719699041560,-500.0,0.00016706,2]
[330671083,1719699041570,-500.0,0.00016706,2]
[330671085,1719699041579,-20563.72,0.00016706,2]
[330671087,1719699041589,-500.0,0.00016706,2]
[330671089,1719699041599,-500.0,0.00016706,2]
[330671091,1719699041608,-500.0,0.00016706,2]
[330671093,1719699041618,-500.0,0.00016706,2]
[330671095,1719699041627,-2202.79,0.00016707,2]
[330671097,1719699041636,-887.63,0.00016707,2]
[330671099,1719699041646,-17233.68,0.00016707,2]
[330671101,1719699041655,-1272.39,0.00016707,2]
[330671103,1719699041665,-500.0,0.00016707,2]
[330671105,1719699041674,-500.0,0.00016707,2]
[330671107,1719699041683,-500.0,0.00016707,2]
[330671109,1719699041693,-506.08147581,0.00016707,2]
[330671111,1719699041703,-500.0,0.00016707,2]
[330671113,1719699041712,-500.0,0.00016707,2]
[330671115,1719699041721,-500.0,0.00016707,2]
[330671117,1719699041731,-1238.97,0.00016707,2]
[330671119,1719699041740,-500.0,0.00016707,2]
[330671121,1719699041750,-500.0,0.00016707,2]
[330671123,1719699041759,-500.0,0.00016707,2]
[330671125,1719699041769,-761.36,0.00016707,2]
[330671127,1719699041779,-500.0,0.00016707,2]
[330671129,1719699041788,-504.66540187,0.00016707,2]
[330671130,1719699041797,-810.64,0.00016707,2]
[330671131,1719699041806,-1377.1,0.00016707,2]
[330671132,1719699041816,-652.0,0.00016707,2]
[330671133,1719699041826,-6580.01034712,0.00016707,2]
[330671134,1719699041892,-7714.94965288,0.00016707,2]
[330671135,1719699041902,-500.0,0.00016707,2]
[330671136,1719699041912,-500.0,0.00016707,2]
[330671137,1719699041921,-500.0,0.00016707,2]
[330671138,1719699041930,-4240.76,0.00016707,2]
[330671139,1719699041940,-500.0,0.00016707,2]
[330671140,1719699041950,-2640.74,0.00016707,2]
[330671141,1719699041959,-500.0,0.00016707,2]
[330671142,1719699041969,-500.0,0.00016707,2]
[330671143,1719699041979,-1139.44,0.00016707,2]
[330671144,1719699041988,-1411.29,0.00016707,2]
[330671145,1719699041998,-1159.77,0.00016707,2]
[330671146,1719699042008,-503.50737533,0.00016707,2]
[330671147,1719699042018,-1162.07,0.00016707,2]
[330671148,1719699042033,-594.01,0.00016707,2]
[330671149,1719699042051,-500.0,0.00016707,2]
[330671150,1719699042061,-1331.6,0.00016707,2]
[330671151,1719699042071,-511.54498652,0.00016707,2]
[330671152,1719699042080,-500.0,0.00016707,2]
[330671153,1719699042089,-500.0,0.00016707,2]
[330671154,1719699042098,-816.36,0.00016707,2]
[330671155,1719699042107,-500.0,0.00016707,2]
[330671156,1719699042117,-2339.59,0.00016707,2]
[330671157,1719699042127,-1501.29,0.00016707,2]
[330671158,1719699042137,-500.0,0.00016707,2]
[330671159,1719699042146,-2745.91,0.00016707,2]
[330671160,1719699042155,-1654.7,0.00016707,2]
[330671161,1719699042165,-500.0,0.00016707,2]
[330671162,1719699042174,-500.0,0.00016707,2]
[330671163,1719699042183,-1629.35,0.00016707,2]
[330671164,1719699042192,-500.0,0.00016707,2]
[330671165,1719699042201,-500.0,0.00016707,2]
[330671166,1719699042211,-500.0,0.00016707,2]
[330671167,1719699042220,-502.11441491,0.00016707,2]
[330671168,1719699042229,-963.52,0.00016707,2]
[330671170,1719699042239,-508.53454151,0.00016707,2]
[330671172,1719699042248,-2888.37,0.00016707,2]
[330671173,1719699042257,-688.28,0.00016707,2]
[330671174,1719699042266,-500.0,0.00016707,2]
[330671175,1719699042276,-500.0,0.00016707,2]
[330671176,1719699042285,-500.0,0.00016707,2]
[330671177,1719699042294,-500.0,0.00016707,2]
[330671178,1719699042303,-500.0,0.00016707,2]
[330671179,1719699042313,-500.0,0.00016707,2]
[330671180,1719699042322,-500.0,0.00016707,2]
[330671181,1719699042333,-500.0,0.00016707,2]
[330671182,1719699042342,-500.0,0.00016707,2]
[330671183,1719699042351,-500.0,0.00016707,2]
[330671184,1719699042362,-821.26,0.00016707,2]
[330671185,1719699042371,-1569.24,0.00016707,2]
[330671186,1719699042380,-576.98,0.00016707,2]
[330671187,1719699042390,-1570.18,0.00016707,2]
[330671188,1719699042399,-1304.06,0.00016707,2]
[330671189,1719699042408,-500.0,0.00016707,2]
[330671190,1719699042418,-500.0,0.00016707,2]
[330671191,1719699042427,-500.0,0.00016707,2]
[330671192,1719699042436,-151.0,0.00016707,2]
[330671193,1719699042446,-640.81945522,0.00016707,2]
[330671194,1719699042455,-20779.52,0.00016707,2]
[330671195,1719699042464,-855.42,0.00016707,2]
[330671196,1719699042474,-500.0,0.00016707,2]
[330671197,1719699042483,-683.31,0.00016707,2]
[330671198,1719699042492,-500.0,0.00016707,2]
[330671199,1719699042501,-1619.97,0.00016707,2]
[330671200,1719699042510,-3785.75,0.00016707,2]
[330671201,1719699042520,-500.0,0.00016707,2]
[330671202,1719699042531,-500.0,0.00016707,2]
[330671203,1719699042541,-500.0,0.00016707,2]
[330671204,1719699042550,-504.54,0.00016707,2]
[330671205,1719699042560,-500.0,0.00016707,2]
[330671206,1719699042569,-500.0,0.00016707,2]
[330671207,1719699042579,-500.0,0.00016707,2]
[330671208,1719699042588,-500.0,0.00016707,2]
[330671209,1719699042686,-500.0,0.00016708,2]
[330671210,1719699042696,-500.0,0.00016708,2]
[330671211,1719699042705,-500.0,0.00016708,2]
[330671212,1719699042715,-500.0,0.00016708,2]
[330671213,1719699042724,-500.0,0.00016708,2]
[330671214,1719699042733,-500.0,0.00016708,2]
[330671215,1719699042742,-756.82,0.00016708,2]
[330671216,1719699042751,-659.1,0.00016708,2]
[330671217,1719699042761,-546.05,0.00016708,2]
[330671218,1719699042771,-500.0,0.00016708,2]
[330671219,1719699042780,-1263.27,0.00016708,2]
[330671220,1719699042789,-734.0,0.00016708,2]
[330671221,1719699042799,-500.0,0.00016708,2]
[330671222,1719699042809,-286.46347606,0.00016708,2]
[330671223,1719699042818,-352.01106044,0.00016708,2]
[330671224,1719699042829,-500.0,0.00016708,2]
[330671225,1719699042838,-500.0,0.00016708,2]
[330671226,1719699042851,-500.0,0.00016708,2]
[330671227,1719699042861,-500.0,0.00016708,2]
[330671228,1719699042871,-501.90636135,0.00016708,2]
[330671229,1719699042880,-741.9,0.00016708,2]
[330671230,1719699042890,-500.0,0.00016708,2]
[330671231,1719699042899,-500.0,0.00016708,2]
[330671232,1719699042909,-501.1586156,0.00016708,2]
[330671233,1719699042918,-500.0,0.00016708,2]
[330671234,1719699042927,-500.0,0.00016708,2]
[330671235,1719699042937,-500.0,0.00016708,2]
[330671236,1719699042947,-500.0,0.00016708,2]
[330671237,1719699042956,-500.0,0.00016708,2]
[330671238,1719699042966,-500.0,0.00016708,2]
[330671239,1719699042976,-504.28075772,0.00016708,2]
[330671240,1719699042986,-500.0,0.00016708,2]
[330671241,1719699042996,-500.0,0.00016708,2]
[330671242,1719699043006,-500.0,0.00016708,2]
[330671243,1719699043015,-500.0,0.00016708,2]
[330671244,1719699043025,-500.0,0.00016708,2]
[330671245,1719699043039,-500.0,0.00016708,2]
[330671246,1719699043048,-500.0,0.00016708,2]
[330671247,1719699043059,-500.0,0.00016708,2]
[330671248,1719699043069,-500.0,0.00016708,2]
[330671249,1719699043079,-500.0,0.00016708,2]
[330671250,1719699043089,-500.0,0.00016708,2]
[330671251,1719699043098,-500.0,0.00016708,2]
[330671252,1719699043108,-500.0,0.00016708,2]
[330671253,1719699043117,-536.30899488,0.00016708,2]
[330671254,1719699043128,-504.18292755,0.00016708,2]
[330671255,1719699043138,-500.0,0.00016708,2]
[330671256,1719699043147,-635.48,0.00016708,2]
[330671257,1719699043156,-500.0,0.00016708,2]
[330671258,1719699043167,-500.0,0.00016708,2]
[330671259,1719699043176,-500.0,0.00016708,2]
[330671260,1719699043186,-500.0,0.00016708,2]
[330671261,1719699043195,-845.62,0.00016708,2]